{"text_format":"1","workbook":"xlsx","n_sheets":2,"sheets":["AdjTool","JobDeptList"],"not_rendered":{"charts":0,"images":2,"macros":1,"external_links":0,"defined_names":20,"comments":0,"pivot_tables":0},"unopened":[],"bounds":{"document_bytes":16777216,"sheet_cells":100000,"rows_first":2000,"rows_last":500,"rows_between":2000,"halvings":0,"cell_chars":16384,"cell_head_chars":4096},"cells_cut":0,"cells_raw":0,"read":"whole","date_system":"1900"}

{"sheet":"AdjTool","index":0,"n_rows":42,"n_cols":35,"rows_kept":42,"cut":false,"hidden":false,"merged":[[0,1,0,13],[21,2,21,3],[1,1,1,13],[32,1,41,1],[26,2,26,3],[27,2,27,3],[16,13,19,13],[28,2,28,3],[29,2,29,3],[30,2,30,3],[21,1,30,1],[18,11,18,12],[16,1,18,3],[3,11,3,13],[16,8,17,12],[18,8,18,10],[16,14,16,21],[15,2,15,13],[23,2,23,3],[24,2,24,3],[25,2,25,3],[16,4,18,7],[22,2,22,3]]}
[null,"                          Labor Targeting Tool"]
[]
[]
[null,"Purpose: FINAL step to Target specific Hours & Salary Percents (by Jobs, Departments, and Store)",null,null,null,null,null,null,null,null,null,"Tool Dependencies"]
[null,null,null,null,null,null,null,null,null,null,1,"Sales Forecast",null,"COMPLETE"]
[null,"All Hour Adjustments to be entered directly into mySchedule Target Hour Adj Dashboard",null,null,null,null,null,null,null,null,2,"Target Wage Adj",null,"COMPLETE"]
[null,null,null,null,null,null,null,null,null,null,3,"Calculate Labor",null,"COMPLETE"]
[null,"Steps to Create Target Hours Adjustments",null,null,null,null,null,null,null,null,4,"Target Hours Adj",null,"Ready"]
[null," 1. Complete Tool Dependencies, then Print next weeks Weekly Job Planner from the mySchedule Dashboard to assess required adjustments and workload needs"]
[null," 2. Select Departments and Jobs where specific targets are desired and SET YOUR LABOR TARGETS (You may leave all pre-existing adjustments in place)"]
[null," 3. Enter PREVIOUS Targets from printed Weekly Job Planner in order to create New Hour Adjustment values"]
[null," 4. Open Target Hour Adj in the mySchedule Dashboard:  Note the current Hour Adjustment Values…Enter the Previous Hour Adjustments below (1.00 where no previous adjustment)"]
[null," 5. Update New Target Hour Adj….Save….and Calculate Hours to activate new targets within mySchedule"]
[]
[]
[]
[null,"All Highlighted Fields Must be completed to trigger adjustment calculation!",null,null,"2.\nSET YOUR LABOR TARGETS ",null,null,null,"\nENTER PREVIOUS mySchedule REPORT VALUES",null,null,null,null,"5. \n\nNew \nTarget Hour Adj\n\nValue","PROTECT & HIDE"]
[]
[null,null,null,null,null,null,null,null,"3.  WEEKLY\n JOB PLANNER",null,null,"4. TARGET \nHOURS ADJ"]
[null,null,"Labor",null,"Setting\nTargeted Hours or Salary?","SET\nTarget \nHours\n\n\nTOTAL","SET\nTarget \nSalary %\n\nDEPT\n","SET\nTarget \nSalary %\n\nSTORE\n(Incl. Fuel)","PREVIOUS\nTarget \nHours\n\n\nTOTAL","\n\nTarget Sal % \n\nDEPT\n","\n\nTarget Sal % \n\nSTORE\n","Driver Name","\n\nPREVIOUS\n Target Hours Adj\n\nValue",null,"Adj. No Other Jobs Calc 1","Implied Target Salary % Store","New Target Hrs From Below","Hours From Below Tgt","Tgt Excl Below","Sum Below Sal","Rem sal","Hours EquivRequired Excl Below","New Sal Below","Sal From Below",null,"Sal From Current","Rem Incr Needed","Rem Incr Excl Upper","Incl?"]
[null,"Store","All Labor",null,null,null,null,null,null,null,null,{"$f":"C21","v":"All Labor"},null,{"$f":"IF(AC21=1,AA21*M21,\"N/A\")","v":"N/A"},{"$f":"IF(RIGHT(E21,1)=\"E\",H21/K21*M21,G21/J21*M21)","v":{"$error":"#DIV/0!"}},{"$f":"IF(E21=\"Salary % - STORE\",H21,G21/J21*K21)","v":{"$error":"#DIV/0!"}},null,null,null,null,null,null,null,{"$f":"SUMIF(AC22:AC31,1,Z22:Z31)+SUMIF(W33:W42,1,Q33:Q42)","v":0},null,null,{"$f":"IF(AC21=1,1+AH21/(K21-AI21),\"N/A\")","v":"N/A"},null,{"$f":"IF(H21=0,\"N/A\",IF(K21=\"\",\"N/A\",IF(M21=\"\",\"N/A\",IF(E21=\"Salary % - DEPT\",IF(G21=\"\",\"N/A\",IF(J21=\"\",\"N/A\",1)),1))))","v":"N/A"},"STORE","DEPT","HOURS",{"$f":"X21+K21","v":0},{"$f":"P21-AG21","v":{"$error":"#DIV/0!"}},{"$f":"SUMIF(AC22:AC31,1,K22:K31)+SUMIF(W33:W42,1,K33:K42)-SUMIF(AC22:AC31,1,T22:T31)","v":0}]
[null,"\n\nDept \nAdjustments\n\n\n\n                               Scheduled Job",null,null,null,null,null,null,null,null,null,{"$f":"HLOOKUP(C22,JobDeptList!$B$1:$Q$2,2,FALSE)","v":{"$error":"#N/A"}},null,{"$f":"IF(AC22=1,AA22/$AA$21*M22,\"N/A\")","v":"N/A"},{"$f":"IF(AC22=1,IF(E22=\"Hours\",F22/I22*M22,IF(E22=\"Salary % - DEPT\",G22/J22*M22,H22/K22*M22)),\"\")","v":""},{"$error":"#DIV/0!"},{"$f":"SUMIFS($F$33:$F$42,$C$33:$C$42,C22,$W$33:$W$42,1)","v":0},{"$f":"SUMIFS($I$33:$I$42,$C$33:$C$42,C22,$W$33:$W$42,1)","v":0},{"$f":"I22-R22","v":0},{"$f":"SUMIF($C$33:$C$42,C22,$K$33:$K$42)","v":0},{"$f":"K22-T22","v":0},{"$f":"F22-Q22","v":0},{"$f":"IF(AC22=1,T22+X22,0)","v":0},{"$f":"IF(AC22=1,SUMIFS($Q$33:$Q$42,$W$33:$W$42,1,$C$33:$C$42,C22),0)","v":0},null,{"$f":"IFERROR(U22*(AA22-1),0)","v":0},{"$f":"IF(AC22=1,IF(LEFT(E22,1)=\"S\",(P22-W22)/(K22-T22),(F22-Q22)/(I22-R22)),\"N/A\")","v":"N/A"},{"$f":"AA22/$AA$21","v":{"$error":"#VALUE!"}},{"$f":"IF(AD22=1,1,IF(AE22=1,1,IF(AF22=1,1,\"N/A\")))","v":"N/A"},{"$f":"IF(E22=\"Salary % - STORE\",IF(H22>0,IF(J22>0,IF(K22>0,IF(I22>0,IF(M22>0,1))))))","v":false},{"$f":"IF(E22=\"Salary % - DEPT\",IF(G22>0,IF(J22>0,IF(K22>0,IF(I22>0,IF(M22>0,1))))))","v":false},{"$f":"IF(E22=\"HOURS\",IF(F22>0,IF(J22>0,IF(K22>0,IF(I22>0,IF(M22>0,1))))))","v":false},0,{"$f":"P22-AG22","v":{"$error":"#DIV/0!"}},{"$f":"SUMIF(AC23:AC32,1,J23:J32)+SUMIF(W34:W43,1,J34:J43)-SUMIF(AC23:AC32,1,T23:T32)","v":0}]
[null,null,null,null,null,null,null,null,null,null,null,{"$f":"HLOOKUP(C23,JobDeptList!$B$1:$Q$2,2,FALSE)","v":{"$error":"#N/A"}},null,"N/A","",{"$error":"#DIV/0!"},0,0,0,0,0,0,{"$f":"IF(AC23=1,T23+X23,0)","v":0},0,null,{"$f":"IFERROR(U23*(AA23-1),0)","v":0},"N/A",{"$error":"#VALUE!"},{"$f":"IF(AD23=1,1,IF(AE23=1,1,IF(AF23=1,1,\"N/A\")))","v":"N/A"},false,false,false,0,{"$f":"P23-AG23","v":{"$error":"#DIV/0!"}},0]
[null,null,null,null,null,null,null,null,null,null,null,{"$f":"HLOOKUP(C24,JobDeptList!$B$1:$Q$2,2,FALSE)","v":{"$error":"#N/A"}},null,"N/A","",{"$error":"#DIV/0!"},0,0,0,0,0,0,{"$f":"IF(AC24=1,T24+X24,0)","v":0},0,null,{"$f":"IFERROR(U24*(AA24-1),0)","v":0},"N/A",{"$error":"#VALUE!"},"N/A",false,false,false,0,{"$error":"#DIV/0!"},0]
[null,null,null,null,null,null,null,null,null,null,null,{"$f":"HLOOKUP(C25,JobDeptList!$B$1:$Q$2,2,FALSE)","v":{"$error":"#N/A"}},null,"N/A","",{"$error":"#DIV/0!"},0,0,0,0,0,0,{"$f":"IF(AC25=1,T25+X25,0)","v":0},0,null,0,"N/A",{"$error":"#VALUE!"},"N/A",false,false,false,0,{"$error":"#DIV/0!"},0]
[null,null,null,null,null,null,null,null,null,null,null,{"$f":"HLOOKUP(C26,JobDeptList!$B$1:$Q$2,2,FALSE)","v":{"$error":"#N/A"}},null,"N/A","",{"$error":"#DIV/0!"},0,0,0,0,0,0,0,0,null,0,"N/A",{"$error":"#VALUE!"},"N/A",false,false,false,0,{"$error":"#DIV/0!"},0]
[null,null,null,null,null,null,null,null,null,null,null,{"$f":"HLOOKUP(C27,JobDeptList!$B$1:$Q$2,2,FALSE)","v":{"$error":"#N/A"}},null,"N/A","",{"$error":"#DIV/0!"},0,0,0,0,0,0,0,0,null,0,"N/A",{"$error":"#VALUE!"},"N/A",false,false,false,0,{"$error":"#DIV/0!"},0]
[null,null,null,null,null,null,null,null,null,null,null,{"$f":"HLOOKUP(C28,JobDeptList!$B$1:$Q$2,2,FALSE)","v":{"$error":"#N/A"}},null,"N/A","",{"$error":"#DIV/0!"},0,0,0,0,0,0,0,0,null,0,"N/A",{"$error":"#VALUE!"},"N/A",false,false,false,0,{"$error":"#DIV/0!"},0]
[null,null,null,null,null,null,null,null,null,null,null,{"$f":"HLOOKUP(C29,JobDeptList!$B$1:$Q$2,2,FALSE)","v":{"$error":"#N/A"}},null,"N/A","",{"$error":"#DIV/0!"},0,0,0,0,0,0,0,0,null,0,"N/A",{"$error":"#VALUE!"},"N/A",false,false,false,0,{"$error":"#DIV/0!"},0]
[null,null,null,null,null,null,null,null,null,null,null,{"$f":"HLOOKUP(C30,JobDeptList!$B$1:$Q$2,2,FALSE)","v":{"$error":"#N/A"}},null,"N/A","",{"$error":"#DIV/0!"},0,0,0,0,0,0,0,0,null,0,"N/A",{"$error":"#VALUE!"},"N/A",false,false,false,0,{"$error":"#DIV/0!"},0]
[null,null,null,null,null,null,null,null,null,null,null,{"$f":"HLOOKUP(C31,JobDeptList!$B$1:$Q$2,2,FALSE)","v":{"$error":"#N/A"}},null,"N/A","",{"$error":"#DIV/0!"},0,0,0,0,0,0,0,0,null,0,"N/A",{"$error":"#VALUE!"},"N/A",false,false,false,0,{"$error":"#DIV/0!"},0]
[null,null,"Dept","Job",null,null,null,null,null,null,null,null,null,null,null,null,"Sal Impct"]
[null,"Job Adjustments",null,null,null,null,null,null,null,null,null,{"$f":"VLOOKUP(D33,JobDeptList!$F$13:$G$68,2,FALSE)","v":{"$error":"#N/A"}},null,{"$f":"IF(W33=1,IFERROR(O33/(IFERROR(VLOOKUP(C33,$C$22:$AB$31,26,FALSE)*$AA$21,$AA$21)),O33),\"N/A\")","v":"N/A"},{"$f":"IF(E33=\"Hours\",F33/(I33/M33),IF(E33=\"Salary % - STORE\",H33/(K33/M33),G33/(J33/M33)))","v":{"$error":"#DIV/0!"}},null,{"$f":"IF(W33=\"N/A\",0,O33/M33*K33-K33)","v":0},null,{"$f":"Q33/K33*I33","v":{"$error":"#DIV/0!"}},null,null,null,{"$f":"IF(K33=\"\",\"N/A\",IF(I33=\"\",\"N/A\",IF(M33=\"\",\"N/A\",IF(E33=\"\",\"N/A\",1))))","v":"N/A"},{"$f":"IF(C33=\"347 FE Service\",\"Service\",IF(C33=\"347 FE Admin\",\"Admin\",\"_\"&LEFT(C33,3)))","v":"_"},null,null,null,null,{"$f":"IF(AD33=1,1,IF(AE33=1,1,IF(AF33=1,1,\"N/A\")))","v":"N/A"},{"$f":"IF(E33=\"Salary % - STORE\",IF(H33>0,IF(J33>0,IF(K33>0,IF(I33>0,IF(M33>0,1))))))","v":false},{"$f":"IF(E33=\"Salary % - DEPT\",IF(G33>0,IF(J33>0,IF(K33>0,IF(I33>0,IF(M33>0,1))))))","v":false},{"$f":"IF(E33=\"HOURS\",IF(F33>0,IF(J33>0,IF(K33>0,IF(I33>0,IF(M33>0,1))))))","v":false}]
[null,null,null,null,null,null,null,null,null,null,null,{"$f":"VLOOKUP(D34,JobDeptList!$F$13:$G$68,2,FALSE)","v":{"$error":"#N/A"}},null,"N/A",{"$error":"#DIV/0!"},null,0,null,{"$error":"#DIV/0!"},null,null,null,"N/A","_",null,null,null,null,{"$f":"IF(AD34=1,1,IF(AE34=1,1,IF(AF34=1,1,\"N/A\")))","v":"N/A"},false,false,false]
[null,null,null,null,null,null,null,null,null,null,null,{"$f":"VLOOKUP(D35,JobDeptList!$F$13:$G$68,2,FALSE)","v":{"$error":"#N/A"}},null,"N/A",{"$error":"#DIV/0!"},null,0,null,{"$error":"#DIV/0!"},null,null,null,"N/A","_",null,null,null,null,"N/A",false,false,false]
[null,null,null,null,null,null,null,null,null,null,null,{"$f":"VLOOKUP(D36,JobDeptList!$F$13:$G$68,2,FALSE)","v":{"$error":"#N/A"}},null,"N/A",{"$error":"#DIV/0!"},null,0,null,{"$error":"#DIV/0!"},null,null,null,"N/A","_",null,null,null,null,"N/A",false,false,false]
[null,null,null,null,null,null,null,null,null,null,null,{"$f":"VLOOKUP(D37,JobDeptList!$F$13:$G$68,2,FALSE)","v":{"$error":"#N/A"}},null,"N/A",{"$error":"#DIV/0!"},null,0,null,{"$error":"#DIV/0!"},null,null,null,"N/A","_",null,null,null,null,"N/A",false,false,false]
[null,null,null,null,null,null,null,null,null,null,null,{"$f":"VLOOKUP(D38,JobDeptList!$F$13:$G$68,2,FALSE)","v":{"$error":"#N/A"}},null,"N/A",{"$error":"#DIV/0!"},null,0,null,{"$error":"#DIV/0!"},null,null,null,"N/A","_",null,null,null,null,"N/A",false,false,false]
[null,null,null,null,null,null,null,null,null,null,null,{"$f":"VLOOKUP(D39,JobDeptList!$F$13:$G$68,2,FALSE)","v":{"$error":"#N/A"}},null,"N/A",{"$error":"#DIV/0!"},null,0,null,{"$error":"#DIV/0!"},null,null,null,"N/A","_",null,null,null,null,"N/A",false,false,false]
[null,null,null,null,null,null,null,null,null,null,null,{"$f":"VLOOKUP(D40,JobDeptList!$F$13:$G$68,2,FALSE)","v":{"$error":"#N/A"}},null,"N/A",{"$error":"#DIV/0!"},null,0,null,{"$error":"#DIV/0!"},null,null,null,"N/A","_",null,null,null,null,"N/A",false,false,false]
[null,null,null,null,null,null,null,null,null,null,null,{"$f":"VLOOKUP(D41,JobDeptList!$F$13:$G$68,2,FALSE)","v":{"$error":"#N/A"}},null,"N/A",{"$error":"#DIV/0!"},null,0,null,{"$error":"#DIV/0!"},null,null,null,"N/A","_",null,null,null,null,"N/A",false,false,false]
[null,null,null,null,null,null,null,null,null,null,null,{"$f":"VLOOKUP(D42,JobDeptList!$F$13:$G$68,2,FALSE)","v":{"$error":"#N/A"}},null,"N/A",{"$error":"#DIV/0!"},null,0,null,{"$error":"#DIV/0!"},null,null,null,"N/A","_",null,null,null,null,"N/A",false,false,false]

{"sheet":"JobDeptList","index":1,"n_rows":66,"n_cols":17,"rows_kept":66,"cut":false,"hidden":true,"merged":[]}
[null,"301 Grocery","303 Liquor","304 Pharmacy","306 Food Service","309 Deli","311 GMHBC","315 Floral","316 Bakery","328 Coffee Bar","329 Produce","330 Seafood","333 Meat","339 Fuel","341 Juice Bar","347 FE Admin","347 FE Service"]
[null,"301 *GROCERY","303 *LIQUOR","304 *PHARMACY","306 *FOOD SERVICE","309 *DELI","311 *GMHBC","315 *FLORAL","316 *BAKERY","328 *COFFEE BAR","329 *PRODUCE","330 *SEAFOOD","333 *MEAT","339 *FUEL","341 *JUICE BAR","347 196 *FE ADMIN","347 199 *FE SERVICE"]
[null,{"$f":"LEFT(B2,3)","v":"301"},{"$f":"LEFT(C2,3)","v":"303"},"304","306","309","311","315","316","328","329","330","333","339","341","Admin","Service"]
[null,"Dairy","Liquor Clerk","Patient Care Supv","China Express","Cheese Specialist","GMHBC Clerk","Floral Manager","Bakers Helper","Coffee Clerk","Produce Clerk","Seafood Clerk","Meat Clerk","Fuel Ambassador","Juice Clerk","Bookkeeper","Checker"]
[null,"Day Stock","Liquor Manager","Patient Care Tech","Food Service Clerk","Deli Manager","GMHBC Manager","Floral Clerk","Bakery Manager","Coffee Manager","Produce Manager","Seafood Manager","Meat Cutter","Fuel Clerk","Juice Manager","File Maintenance","Checker SCO"]
[null,"Frozen","Wine Steward","Pharmacist",null,"Deli Clerk",null,null,"Decorator",null,"Produce Sanitation",null,"Meat Manager","Fuel Manager",null,"ICC BDR","Courtesy Clerk"]
[null,"Night Stock",null,"Pharmacy Clerk",null,null,null,null,"Production",null,null,null,null,null,null,"Porter","FE Service Manager"]
[null,"Night Crew Manager",null,"Pharmacy Manager",null,null,null,null,"Sales",null,null,null,null,null,null,"Sanitation Clerk"]
[null,"Salvage CC",null,"Pharmacy Technician",null,null,null,null,null,null,null,null,null,null,null,"Service Center"]
[null,null,null,null,null,null,null,null,null,null,null,null,null,null,null,"Management"]
[]
[null,null,null,null,null,"JOB DRIVER LOOKUP"]
[null,"Hours Options","Dept",null,null,"Dairy","301 Dairy"]
[null,"Salary % - DEPT","301 Grocery",null,null,"Day Stock","301 Day Stock"]
[null,"Salary % - STORE","303 Liquor",null,null,"Frozen","301 Frozen"]
[null,"Hours","304 Pharmacy",null,null,"Night Crew Manager","301 Night Crew Mgr"]
[null,null,"306 Food Service",null,null,"Night Stock","301 Night Stock"]
[null,null,"309 Deli",null,null,"Salvage CC","301 Salvage CC"]
[null,null,"311 GMHBC",null,null,"Liquor Clerk","303 Liquor Clerk"]
[null,null,"315 Floral",null,null,"Liquor Manager","303 Liquor Manager"]
[null,null,"316 Bakery",null,null,"Wine Steward","303 Wine Steward"]
[null,null,"328 Coffee Bar",null,null,"Patient Care Supv","304 Patient Care Sup"]
[null,null,"329 Produce",null,null,"Patient Care Tech","304 Patient Care Tch"]
[null,null,"330 Seafood",null,null,"Pharmacist","304 Pharmacist"]
[null,null,"333 Meat",null,null,"Pharmacy Clerk","304 Pharmacy Clerk"]
[null,null,"339 Fuel",null,null,"Pharmacy Manager","304 Pharmacy Manager"]
[null,null,"341 Juice Bar",null,null,"Pharmacy Technician","304 Pharmacy Tech"]
[null,null,"347 FE Admin",null,null,"China Express","306 China Express"]
[null,null,"347 FE Service",null,null,"Food Service Clerk","306 Food Service Clk"]
[null,null,null,null,null,"Cheese Specialist","309 Cheese Spclst"]
[null,null,null,null,null,"Deli Clerk","309 Deli Clerk"]
[null,null,null,null,null,"Deli Manager","309 Deli Manager"]
[null,null,null,null,null,"GMHBC Clerk","311 GMHBC Clerk"]
[null,null,null,null,null,"GMHBC Manager","311 GMHBC Manager"]
[null,null,null,null,null,"Floral Clerk","315 Floral Clerk"]
[null,null,null,null,null,"Floral Manager","315 Floral Manager"]
[null,null,null,null,null,"Bakers Helper","316 Bakers Helper"]
[null,null,null,null,null,"Bakery Manager","316 Bakery Manager"]
[null,null,null,null,null,"Bakery Sanitation",{"$error":"#N/A"}]
[null,null,null,null,null,"Decorator","316 Decorator"]
[null,null,null,null,null,"Production","316 Production"]
[null,null,null,null,null,"Sales","316 Sales"]
[null,null,null,null,null,"Coffee Clerk","328 Coffee Clerk"]
[null,null,null,null,null,"Coffee Manager","328 Coffee Manager"]
[null,null,null,null,null,"Produce Clerk","329 Produce Clerk"]
[null,null,null,null,null,"Produce Manager","329 Produce Manager"]
[null,null,null,null,null,"Seafood Clerk","330 Seafood Clerk"]
[null,null,null,null,null,"Seafood Manager","330 Seafood Manager"]
[null,null,null,null,null,"Meat Clerk","333 Meat Clerk"]
[null,null,null,null,null,"Meat Cutter","333 Meat Cutter"]
[null,null,null,null,null,"Meat Manager","333 Meat Manager"]
[null,null,null,null,null,"Fuel Ambassador","339 Fuel Ambassador"]
[null,null,null,null,null,"Fuel Clerk","339 Fuel Clerk"]
[null,null,null,null,null,"Fuel Manager","339 Fuel Manager"]
[null,null,null,null,null,"Juice Clerk","341 Juice Clerk"]
[null,null,null,null,null,"Bookkeeper","347 196 Bookkeeper"]
[null,null,null,null,null,"File Maintenance","347 196 File Maint"]
[null,null,null,null,null,"ICC BDR","347 196 ICC BDR"]
[null,null,null,null,null,"Management","347 196 Management"]
[null,null,null,null,null,"Porter","347 196 Porter"]
[null,null,null,null,null,"Sanitation Clerk","347 196 Sanit Clk"]
[null,null,null,null,null,"Service Center","347 196 Service Cntr"]
[null,null,null,null,null,"Checker","347 199 Checker "]
[null,null,null,null,null,"Checker SCO","347 199 SCO "]
[null,null,null,null,null,"Courtesy Clerk","347 199 Courtesy Clk"]
[null,null,null,null,null,"FE Service Manager","347 199 FE Service Mgr"]